Workbook

Sheet Itaú - Alimenta
A2: Empresa: | B2: Alimenta Serviços ltda | D2: Banco: | E2: Itaú S/A. | H2: Crédito | J2: =E4501 -> 20000
A3: C.N.P.J n.º: | B3: 06.128.893/0001-31 | D3: Agencia n° | E3: 0429 | H3: Débito | J3: =D4501 -> 22560.02
A4: Endereço: | B4: Av. Pacaembu, 746 Pacaembu São Paulo - SP | D4: Conta Corrente n.º: | E4: 58.903-9 | H4: Devolução DOC | J4: 0
B5: CEP 01234-000 | H5: Juros | J5: =D1084+D1092+D1107 -> 0
A6: Valor do saldo anterior 31/12/2015 | C6: 576.19 | D6: Referente o ano de: | E6: 2016 | H6: Amortização | J6: 0
A7: Valor final do saldo Extrato Bancário | C7: =C6+E4501-D4501 -> -1983.83 | H7: Devolução CH | J7: 0
F9: SALDO
A10: Data | B10: Discrição (nome do credor) | C10: Histórico | D10: Débito | E10: Crédito | F10: =C6 -> 576.19 | G10: Filial Saída | H10: NF n° ou caixa de | I10: Emissão ou depósito | J10: Vencim. | K10: Tipo de pgto e entrada
A11: 2016-05-01 | B11: Depósito em dinheiro | E11: 20000 | F11: =IF(E11>0,F10+E11,IF(D11>0,F10-D11," ")) -> 20576.19 | H11: 2016-04-30 | K11: Buriti
A12: 2016-05-01 | B12: I Park estacionamentos Ltda | C12: Ref. Movimento de 30/04/2016 | D12: 5740 | F12: 14836.19 | J12: 2016-05-01 | K12: Transferência
A13: 2016-05-01 | B13: I Park estacionamentos Ltda | C13: Ref. Movimento de 01/05/2016 | D13: 1535 | F13: 13301.19 | J13: 2016-05-01 | K13: Transferência
A14: 2016-05-01 | B14: Nelson Rodrigues Brito Alves | C14: Para acerto funcionários de 01/05/2016 | D14: 47 | F14: 13254.19 | J14: 2016-05-01 | K14: Boleto
A15: 2016-05-01 | B15: Natalie Lima Hornos | C15: Depósito em C/C a pedido do Edson | D15: 10000 | F15: 3254.19 | J15: 2016-05-01 | K15: Ted-c
A16: 2016-05-01 | B16: Tarifa Cartão PJ | D16: 5.5 | F16: 3248.69 | J16: 2016-05-01
A17: 2016-05-02 | B17: Impakto sistema de limpeza e des | C17: Material de limpeza e descartáveis | D17: 853.35 | F17: 2395.34 | G17: outlet jun | H17: 1.146604 | J17: 2016-05-02 | K17: Boleto
A18: 2016-05-02 | B18: Comercial Louro de frios e salg. | C18: Supermercado em geral | D18: 3349.57 | F18: -954.23 | G18: outlet jun | H18: 63751 | J18: 2016-05-02 | K18: Boleto
A19: 2016-05-02 | B19: Mario Joaquim dos Santos | C19: Padaria Pingo D Ouro - Pão Francês | D19: 1029.6 | F19: -1983.83 | G19: outlet jun | H19: 988 | J19: 2016-05-02 | K19: Boleto
F75: =IF(E75>0,F74+E75,IF(D75>0,F74-D75," ")) -> 
F139: =IF(E139>0,F138+E139,IF(D139>0,F138-D139," ")) -> 
F203: =IF(E203>0,F202+E203,IF(D203>0,F202-D203," ")) -> 
F267: =IF(E267>0,F266+E267,IF(D267>0,F266-D267," ")) -> 
F331: =IF(E331>0,F330+E331,IF(D331>0,F330-D331," ")) -> 
F395: =IF(E395>0,F394+E395,IF(D395>0,F394-D395," ")) -> 
F459: =IF(E459>0,F458+E459,IF(D459>0,F458-D459," ")) -> 
F523: =IF(E523>0,F522+E523,IF(D523>0,F522-D523," ")) -> 
F587: =IF(E587>0,F586+E587,IF(D587>0,F586-D587," ")) -> 
F651: =IF(E651>0,F650+E651,IF(D651>0,F650-D651," ")) -> 
F715: =IF(E715>0,F714+E715,IF(D715>0,F714-D715," ")) -> 
F779: =IF(E779>0,F778+E779,IF(D779>0,F778-D779," ")) -> 
F843: =IF(E843>0,F842+E843,IF(D843>0,F842-D843," ")) -> 
F907: =IF(E907>0,F906+E907,IF(D907>0,F906-D907," ")) -> 
F971: =IF(E971>0,F970+E971,IF(D971>0,F970-D971," ")) -> 
F1035: =IF(E1035>0,F1034+E1035,IF(D1035>0,F1034-D1035," ")) -> 
F1099: =IF(E1099>0,F1098+E1099,IF(D1099>0,F1098-D1099," ")) -> 
F1163: =IF(E1163>0,F1162+E1163,IF(D1163>0,F1162-D1163," ")) -> 
F1227: =IF(E1227>0,F1226+E1227,IF(D1227>0,F1226-D1227," ")) -> 
F1291: =IF(E1291>0,F1290+E1291,IF(D1291>0,F1290-D1291," ")) -> 
F1355: =IF(E1355>0,F1354+E1355,IF(D1355>0,F1354-D1355," ")) -> 
F1419: =IF(E1419>0,F1418+E1419,IF(D1419>0,F1418-D1419," ")) -> 
F1483: =IF(E1483>0,F1482+E1483,IF(D1483>0,F1482-D1483," ")) -> 
F1547: =IF(E1547>0,F1546+E1547,IF(D1547>0,F1546-D1547," ")) -> 
F1611: =IF(E1611>0,F1610+E1611,IF(D1611>0,F1610-D1611," ")) -> 
F1675: =IF(E1675>0,F1674+E1675,IF(D1675>0,F1674-D1675," ")) -> 
F1739: =IF(E1739>0,F1738+E1739,IF(D1739>0,F1738-D1739," ")) -> 
F1803: =IF(E1803>0,F1802+E1803,IF(D1803>0,F1802-D1803," ")) -> 
F1867: =IF(E1867>0,F1866+E1867,IF(D1867>0,F1866-D1867," ")) -> 
F1931: =IF(E1931>0,F1930+E1931,IF(D1931>0,F1930-D1931," ")) -> 
F1995: =IF(E1995>0,F1994+E1995,IF(D1995>0,F1994-D1995," ")) -> 
F2059: =IF(E2059>0,F2058+E2059,IF(D2059>0,F2058-D2059," ")) -> 
F2123: =IF(E2123>0,F2122+E2123,IF(D2123>0,F2122-D2123," ")) -> 
F2187: =IF(E2187>0,F2186+E2187,IF(D2187>0,F2186-D2187," ")) -> 
F2251: =IF(E2251>0,F2250+E2251,IF(D2251>0,F2250-D2251," ")) -> 
F2315: =IF(E2315>0,F2314+E2315,IF(D2315>0,F2314-D2315," ")) -> 
F2379: =IF(E2379>0,F2378+E2379,IF(D2379>0,F2378-D2379," ")) -> 
F2443: =IF(E2443>0,F2442+E2443,IF(D2443>0,F2442-D2443," ")) -> 
F2507: =IF(E2507>0,F2506+E2507,IF(D2507>0,F2506-D2507," ")) -> 
F2571: =IF(E2571>0,F2570+E2571,IF(D2571>0,F2570-D2571," ")) -> 
F2635: =IF(E2635>0,F2634+E2635,IF(D2635>0,F2634-D2635," ")) -> 
F2699: =IF(E2699>0,F2698+E2699,IF(D2699>0,F2698-D2699," ")) -> 
F2763: =IF(E2763>0,F2762+E2763,IF(D2763>0,F2762-D2763," ")) -> 
F2827: =IF(E2827>0,F2826+E2827,IF(D2827>0,F2826-D2827," ")) -> 
F2891: =IF(E2891>0,F2890+E2891,IF(D2891>0,F2890-D2891," ")) -> 
F2955: =IF(E2955>0,F2954+E2955,IF(D2955>0,F2954-D2955," ")) -> 
F3019: =IF(E3019>0,F3018+E3019,IF(D3019>0,F3018-D3019," ")) -> 
F3083: =IF(E3083>0,F3082+E3083,IF(D3083>0,F3082-D3083," ")) -> 
F3147: =IF(E3147>0,F3146+E3147,IF(D3147>0,F3146-D3147," ")) -> 
F3211: =IF(E3211>0,F3210+E3211,IF(D3211>0,F3210-D3211," ")) -> 
F3275: =IF(E3275>0,F3274+E3275,IF(D3275>0,F3274-D3275," ")) -> 
F3339: =IF(E3339>0,F3338+E3339,IF(D3339>0,F3338-D3339," ")) -> 
F3403: =IF(E3403>0,F3402+E3403,IF(D3403>0,F3402-D3403," ")) -> 
F3467: =IF(E3467>0,F3466+E3467,IF(D3467>0,F3466-D3467," ")) -> 
F3531: =IF(E3531>0,F3530+E3531,IF(D3531>0,F3530-D3531," ")) -> 
F3595: =IF(E3595>0,F3594+E3595,IF(D3595>0,F3594-D3595," ")) -> 
F3659: =IF(E3659>0,F3658+E3659,IF(D3659>0,F3658-D3659," ")) -> 
F3723: =IF(E3723>0,F3722+E3723,IF(D3723>0,F3722-D3723," ")) -> 
F3787: =IF(E3787>0,F3786+E3787,IF(D3787>0,F3786-D3787," ")) -> 
F3851: =IF(E3851>0,F3850+E3851,IF(D3851>0,F3850-D3851," ")) -> 
F3915: =IF(E3915>0,F3914+E3915,IF(D3915>0,F3914-D3915," ")) -> 
F3979: =IF(E3979>0,F3978+E3979,IF(D3979>0,F3978-D3979," ")) -> 
F4043: =IF(E4043>0,F4042+E4043,IF(D4043>0,F4042-D4043," ")) -> 
F4107: =IF(E4107>0,F4106+E4107,IF(D4107>0,F4106-D4107," ")) -> 
F4171: =IF(E4171>0,F4170+E4171,IF(D4171>0,F4170-D4171," ")) -> 
F4235: =IF(E4235>0,F4234+E4235,IF(D4235>0,F4234-D4235," ")) -> 
F4299: =IF(E4299>0,F4298+E4299,IF(D4299>0,F4298-D4299," ")) -> 
F4363: =IF(E4363>0,F4362+E4363,IF(D4363>0,F4362-D4363," ")) -> 
F4427: =IF(E4427>0,F4426+E4427,IF(D4427>0,F4426-D4427," ")) -> 
F4491: =IF(E4491>0,F4490+E4491,IF(D4491>0,F4490-D4491," ")) -> 
A4501: Total | D4501: =SUM(D11:D4500) -> 22560.02 | E4501: =SUM(E11:E4500) -> 20000

Sheet dia 1
B3: ="Controle Bancário Golden e Alimenta "&C5 &" de "&C6 &" de "&C7 -> Controle Bancário Golden e Alimenta 01 de maio de 2016
B5: Dia: | C5: 01 | F5: Saldo Anterior: | G5: 32.25 | K5: Banco | L5: ITAÚ
B6: Mês: | C6: maio | F6: Entrada do dia: | G6: =F63 -> 20000 | K6: Agência | L6: 429
B7: Ano: | C7: 2016 | F7: Saída do dia: | G7: =E63 -> 17327.5 | K7: Conta corrente | L7: 58903-9
F8: Saldo Atual: | G8: =G5+G6-G7 -> 2704.75
B11: Data | C11: Descrição | D11: Histórico | E11: Débito | F11: Crédito | G11: Saldo | H11: Filial / Saída | I11: NF ou Caixa de | J11: Alim | K11: Vencim. | L11: Tipo de pgto e entrada
G12: =G5 -> 32.25
B13: 2016-05-01 | C13: Depósito em dinheiro | F13: 20000 | G13: =IF(F13>0,G12+F13,IF(E13>0,G12-E13," ")) -> 20032.25 | I13: 2016-04-30 | L13: Buriti
B14: 2016-05-01 | C14: I Park estacionamentos Ltda | D14: Ref. Movimento de 30/04/2016 | E14: 5740 | G14: =IF(F14>0,G13+F14,IF(E14>0,G13-E14," ")) -> 14292.25 | H14: Outlet | K14: 2016-05-01 | L14: Transferência
B15: 2016-05-01 | C15: I Park estacionamentos Ltda | D15: Ref. Movimento de 01/05/2016 | E15: 1535 | G15: 12757.25 | H15: Outlet | K15: 2016-05-01 | L15: Transferência
B16: 2016-05-01 | C16: Nelson Rodrigues Brito Alves | D16: Para acerto funcionários de 01/05/2016 | E16: 47 | G16: 12710.25 | H16: ADM Golden | K16: 2016-05-01 | L16: Boleto
B17: 2016-05-01 | C17: Natalie Lima Hornos | D17: Depósito em C/C a pedido do Edson | E17: 10000 | G17: 2710.25 | H17: Pessoal | K17: 2016-05-01 | L17: Ted-c
B18: 2016-05-01 | C18: Tarifa Cartão PJ | E18: 5.5 | G18: 2704.75 | K18: 2016-05-01
B63: TOTAIS | E63: =SUM(E13:E62) -> 17327.5 | F63: 20000 | G63: =G5+F63-E63 -> 2704.75

Sheet dia 2
B3: ="Controle Bancário Golden e Alimenta "&C5 &" de "&C6 &" de "&C7 -> Controle Bancário Golden e Alimenta 02 de maio de 2016
B5: Dia: | C5: 02 | F5: Saldo Anterior: | G5: ='dia 1'!G8 -> 2704.75 | K5: Banco | L5: ITAÚ
B6: Mês: | C6: maio | F6: Entrada do dia: | G6: =F63 -> 31837.7 | K6: Agência | L6: 429
B7: Ano: | C7: 2016 | F7: Saída do dia: | G7: =E63 -> 5823.52 | K7: Conta corrente | L7: 58903-9
F8: Saldo Atual: | G8: =G5+G6-G7 -> 28718.93
B11: Data | C11: Descrição | D11: Histórico | E11: Débito | F11: Crédito | G11: Saldo | H11: Filial / Saída | I11: NF ou Caixa de | J11: Alim | K11: Vencim. | L11: Tipo de pgto e entrada
G12: =G5 -> 2704.75
B13: 2016-05-02 | C13: Depósito em dinheiro | F13: 6449 | G13: =IF(F13>0,G12+F13,IF(E13>0,G12-E13," ")) -> 9153.75 | I13: 2016-04-29 | L13: Buriti
B14: 2016-05-02 | C14: Depósito em dinheiro | F14: 11774 | G14: =IF(F14>0,G13+F14,IF(E14>0,G13-E14," ")) -> 20927.75 | I14: 30/04/2016 | L14: Buriti
B15: 2016-05-02 | C15: Depósito em dinheiro | F15: 11344 | G15: 32271.75 | I15: 01/05/2016 | L15: Buriti
B16: 2016-05-02 | C16: Depósito em dinheiro | F16: 2270.7 | G16: 34542.45 | I16: 30/04/2016 | L16: Outlet
B17: 2016-05-02 | C17: Igreja Batista de Agua Branca | D17: Dízimo Edson Siqueira Hornos | E17: 591 | G17: 33951.45 | H17: Pessoal | K17: 2016-05-02 | L17: Transferência
B18: 2016-05-02 | C18: Impakto sistema de limpeza e des | D18: Material de limpeza e descartáveis | E18: 853.35 | G18: 33098.1 | H18: Sampla | I18: 1.146604 | J18: alim | K18: 2016-05-02 | L18: Boleto
B19: 2016-05-02 | C19: Comercial Louro de frios e salg. | D19: Supermercado em geral | E19: 3349.57 | G19: 29748.53 | H19: Sampla | I19: 63751 | J19: alim | K19: 2016-05-02 | L19: Boleto
B20: 2016-05-02 | C20: Mario Joaquim dos Santos | D20: Padaria Pingo D Ouro - Pão Francês | E20: 1029.6 | G20: 28718.93 | H20: Sampla | I20: 988 | J20: alim | K20: 2016-05-02 | L20: Boleto
B63: TOTAIS | E63: =SUM(E13:E62) -> 5823.52 | F63: 31837.7 | G63: =G5+F63-E63 -> 28718.93

Sheet dia 3
B3: ="Controle Bancário Golden e Alimenta "&C5 &" de "&C6 &" de "&C7 -> Controle Bancário Golden e Alimenta 03 de maio de 2016
B5: Dia: | C5: 03 | F5: Saldo Anterior: | G5: ='dia 2'!G8 -> 28718.93 | K5: Banco | L5: ITAÚ
B6: Mês: | C6: maio | F6: Entrada do dia: | G6: =F63 -> 7127 | K6: Agência | L6: 429
B7: Ano: | C7: 2016 | F7: Saída do dia: | G7: =E63 -> 7133 | K7: Conta corrente | L7: 58903-9
F8: Saldo Atual: | G8: =G5+G6-G7 -> 28712.93
B11: Data | C11: Descrição | D11: Histórico | E11: Débito | F11: Crédito | G11: Saldo | H11: Filial / Saída | I11: NF n° ou caixa de | J11: Alim | K11: Vencim. | L11: Tipo de pgto e entrada
G12: =G5 -> 28718.93
B13: 2016-05-03 | C13: Depósito em dinheiro | F13: 6877 | G13: =IF(F13>0,G12+F13,IF(E13>0,G12-E13," ")) -> 35595.93 | I13: 2016-05-02 | J13: alim | L13: Buriti
B14: 2016-05-03 | C14: Condomínio Edifício Renata | D14: Ref. Maio de 2016 | E14: 736 | G14: =IF(F14>0,G13+F14,IF(E14>0,G13-E14," ")) -> 34859.93 | H14: Adm Golden | J14: alim | K14: 2016-05-03 | L14: Boleto
B15: 2016-05-03 | C15: Marcos Antonio Romano | D15: Sinistro Onix Placa - FLT-9726 | E15: 250 | G15: 34609.93 | H15: Outlet | J15: alim | K15: 2016-05-03 | L15: Ted-c
B16: 2016-05-03 | C16: Nelson Rodrigues Brito Alves | D16: Para entregar ao Edson (faxineira) | E16: 170 | G16: 34439.93 | H16: Pessoal | J16: alim | K16: 2016-05-03 | L16: Transferência
B17: 2016-05-03 | C17: Natalie Lima Hornos | D17: Depósito em C/C a pedido do Edson | E17: 5700 | G17: 28739.93 | H17: Pessoal | J17: alim | K17: 2016-05-03 | L17: Transferência
B18: 2016-05-03 | C18: Devolução de TED | D18: Sinistro Onix Placa - FLT-9726-(ag. Errada) | F18: 250 | G18: 28989.93 | J18: alim
B19: 2016-05-03 | C19: Marcos Antonio Romano | D19: Sinistro Onix Placa-FLT-9726-(feito navam. | E19: 250 | G19: 28739.93 | H19: Buriti | J19: alim | K19: 2016-05-03 | L19: Transferência
B20: 2016-05-03 | C20: Tarifa Ted sispag | E20: 27 | G20: 28712.93 | J20: alim
B63: TOTAIS | E63: =SUM(E13:E62) -> 7133 | F63: 7127 | G63: =G5+F63-E63 -> 28712.93

Sheet outlet jun
A2: ="Custo Relatório mensal detalhado "&B4 &" "&B5 &" de "&B6 -> Custo Relatório mensal detalhado ''OUTLET'' Junho de 2016
B4: ''OUTLET'' | C4: Voltar ao menu Outlet | E4: Receita | F4: 0
B5: Junho | E5: Despesas oper. | F5: =D178 -> 0
B6: 2016 | E6: Despesas adm. | F6: 0
C7: Voltar ao menu principal | E7: Resultado | F7: =F4+F5-F6 -> 0
A12: Data | B12: Discrição (nome do credor) | C12: Histórico | D12: Valor | E12: NF N° | F12: EMISSÃO | G12: VENC. | H12: OBS.
B13: 2016-05-02 | C13: Impakto sistema de limpeza e des | D13: Material de limpeza e descartáveis | E13: 853.35 | I13: 1900-01-01T03:31:06.586 | K13: 2016-05-02 | L13: Boleto
B14: 2016-05-02 | C14: Comercial Louro de frios e salg. | D14: Supermercado em geral | E14: 3349.57 | I14: 2074-07-16 | K14: 2016-05-02 | L14: Boleto
B15: 2016-05-02 | C15: Mario Joaquim dos Santos | D15: Padaria Pingo D Ouro - Pão Francês | E15: 1029.6 | I15: 1902-09-14 | K15: 2016-05-02 | L15: Boleto
B178: TOTAL | D178: =SUM(D13:D177) -> 0
